[Event "RUS-ch Women Rapid 2019"]
[Site "Sochi"]
[Date "2019.10.15"]
[Round "1.1"]
[White "Pogonina, Natalija"]
[Black "Dubnikova, Anastasia"]
[Result "1-0"]
[ECO "E09"]
[WhiteElo "2501"]
[BlackElo "1950"]
[Annotator "ChessBase"]
[PlyCount "133"]
[EventDate "2019.10.15"]
[EventType "swiss"]
[EventCountry "RUS"]
[SourceTitle "playchess.com"]
[Source "ChessBase"]
[SourceQuality "1"]
[TimeControl "900+10"]

1. d4 {[%emt 0:00:00]} d5 {[%emt 0:00:00]} 2. g3 {[%emt 0:00:00]} Nf6 {[%emt 0:00:02]} 3. Bg2 {[%emt 0:00:00]} e6 {[%emt 0:00:02]} 4. c4 {[%emt 0:00:00]} Be7 {[%emt 0:00:58]} 5. Nf3 {[%emt 0:00:02]} O-O {[%emt 0:00:02]} 6. O-O {[%emt 0:00:17]} Nbd7 {[%emt 0:00:07]} 7. Qc2 {[%emt 0:00:07]} c6 {[%emt 0:00:06]} 8. Nbd2 {[%emt 0:00:06]} b6 {[%emt 0:00:10]} 9. e4 {[%emt 0:00:01]} dxc4 {[%emt 0:00:19]} 10. Nxc4 {[%emt 0:00:03]} Bb7 {[%emt 0:00:02]} 11. Ne3 {[%emt 0:00:07]} c5 {[%emt 0:00:22]} 12. d5 {[%emt 0:00:01]} exd5 {[%emt 0:00:10]} 13. exd5 {[%emt 0:00:02]} Nxd5 {[%emt 0:00:09]} 14. Nxd5 {[%emt 0:00:02]} Bxd5 {[%emt 0:00:02]} 15. Rd1 {[%emt 0:00:02]} Be6 {[%emt 0:00:02]} 16. Ne5 {[%emt 0:00:02]} Nxe5 {[%emt 0:00:18]} 17. Rxd8 {[%emt 0:00:02]} Raxd8 {[%emt 0:00:02]} 18. Be4 {[%emt 0:00:04]} h6 {[%emt 0:05:43]} 19. Bf4 {[%emt 0:01:29]} Bf6 {[%emt 0:00:35]} 20. Re1 {[%emt 0:00:56]} Kh8 {[%emt 0:01:08]} 21. b3 {[%emt 0:01:12]} Rfe8 {[%emt 0:01:54]} 22. Bxe5 {[%emt 0:04:40]} Bxe5 {[%emt 0:00:03]} 23. Bc6 {[%emt 0:00:08]} Bd7 {[%emt 0:00:03]} 24. Bxd7 {[%emt 0:01:40]} Rxd7 {[%emt 0:00:02]} 25. Qc4 {[%emt 0:00:14]} Kg8 {[%emt 0:00:42]} 26. Kg2 {[%emt 0:00:13]} Rde7 {[%emt 0:01:08]} 27. Qa4 {[%emt 0:00:06]} Kf8 {[%emt 0:00:18]} 28. Qc6 {[%emt 0:00:13]} Re6 {[%emt 0:00:41]} 29. Qd5 {[%emt 0:00:03]} g6 {[%emt 0:01:56]} 30. Kf1 {[%emt 0:01:39]} Bd4 {[%emt 0:00:28]} 31. Rxe6 {[%emt 0:01:06]} Rxe6 {[%emt 0:00:01]} 32. Qa8+ {[%emt 0:00:04]} Kg7 {[%emt 0:00:03]} 33. Qxa7 {[%emt 0:00:02]} Rf6 {[%emt 0:00:18]} 34. f4 {[%emt 0:00:21]} g5 {[%emt 0:00:07]} 35. Ke1 {[%emt 0:02:33]} gxf4 {[%emt 0:00:39]} 36. gxf4 {[%emt 0:00:01]} b5 {[%emt 0:00:26]} 37. a4 {[%emt 0:02:50]} bxa4 {[%emt 0:00:02]} 38. bxa4 {[%emt 0:00:02]} Rxf4 {[%emt 0:00:10]} 39. a5 {[%emt 0:00:05]} c4 {[%emt 0:01:43]} 40. Qc7 {[%emt 0:00:04]} Re4+ {[%emt 0:00:16]} 41. Kd1 {[%emt 0:00:06]} c3 {[%emt 0:00:07]} 42. a6 {[%emt 0:00:29]} Be5 {[%emt 0:00:17]} 43. Qc6 {[%emt 0:00:29]} Rd4+ {[%emt 0:00:04]} 44. Ke2 {[%emt 0:00:03]} Rd2+ {[%emt 0:00:10]} 45. Kf3 {[%emt 0:00:11]} Ra2 {[%emt 0:00:16]} 46. Qd5 {[%emt 0:00:25]} Rxa6 {[%emt 0:00:15]} 47. Qxe5+ {[%emt 0:00:01]} Rf6+ {[%emt 0:00:01]} 48. Kg4 {[%emt 0:00:16]} Kg6 {[%emt 0:00:08]} 49. Qxc3 {[%emt 0:00:04]} Re6 {[%emt 0:00:03]} 50. Qd3+ {[%emt 0:00:05]} Kg7 {[%emt 0:00:07]} 51. h4 {[%emt 0:00:07]} Rg6+ {[%emt 0:00:17]} 52. Kf5 {[%emt 0:00:04]} Rf6+ {[%emt 0:00:03]} 53. Ke5 {[%emt 0:00:06]} Re6+ {[%emt 0:00:03]} 54. Kd5 {[%emt 0:00:02]} Rg6 {[%emt 0:00:14]} 55. Qd4+ {[%emt 0:00:15]} Kg8 {[%emt 0:00:25]} 56. Qf4 {[%emt 0:00:08]} Kg7 {[%emt 0:00:11]} 57. Qf3 {[%emt 0:00:04]} Rf6 {[%emt 0:00:17]} 58. Qg4+ {[%emt 0:00:40]} Rg6 {[%emt 0:00:02]} 59. Qd1 {[%emt 0:00:04]} Kf6 {[%emt 0:00:14]} 60. h5 {[%emt 0:00:04]} Rg5+ {[%emt 0:00:01]} 61. Kd6 {[%emt 0:00:06]} Rf5 {[%emt 0:00:22]} 62. Qg4 {[%emt 0:00:05]} Rg5 {[%emt 0:00:06]} 63. Qf4+ {[%emt 0:00:18]} Kg7 {[%emt 0:00:03]} 64. Ke7 {[%emt 0:00:03]} f6 {[%emt 0:00:19]} 65. Qxf6+ {[%emt 0:00:23]} Kh7 {[%emt 0:00:09]} 66. Kf7 {[%emt 0:00:14]} Rg8 {[%emt 0:00:27]} 67. Qg6+ {[%emt 0:00:10]} 1-0

[Event "RUS-ch Women Rapid 2019"]
[Site "Sochi"]
[Date "2019.10.15"]
[Round "1.2"]
[White "Kochukova, Anna"]
[Black "Bodnaruk, Anastasia"]
[Result "0-1"]
[ECO "B53"]
[WhiteElo "1947"]
[BlackElo "2449"]
[Annotator "NA"]
[PlyCount "54"]
[EventDate "2019.10.15"]
[EventType "swiss"]
[EventCountry "RUS"]
[SourceTitle "playchess.com"]
[Source "ChessBase"]
[SourceQuality "1"]
[TimeControl "900+10"]

1. e4 {[%emt 0:00:00]} c5 {[%emt 0:00:00]} 2. Nf3 {[%emt 0:00:10]} d6 {[%emt 0:00:10]} 3. d4 {[%emt 0:00:10]} cxd4 {[%emt 0:00:02]} 4. Qxd4 {[%emt 0:00:08]} a6 {[%emt 0:00:20]} 5. c4 {[%emt 0:00:06]} Nc6 {[%emt 0:00:11]} 6. Qe3 {[%emt 0:00:12]} Nf6 {[%emt 0:00:28]} 7. h3 {[%emt 0:00:07]} g6 {[%emt 0:00:11]} 8. Nc3 {[%emt 0:00:17]} Bg7 {[%emt 0:00:03]} 9. Be2 {[%emt 0:00:33]} O-O {[%emt 0:00:02]} 10. O-O {[%emt 0:00:02]} Nd7 {[%emt 0:00:30]} 11. Rd1 {[%emt 0:00:36]} Nc5 {[%emt 0:00:19]} 12. Rb1 {[%emt 0:00:29]} f5 {[%emt 0:01:41]} 13. b4 {[%emt 0:03:26]} f4 {[%emt 0:00:21]} 14. Qd2 {[%emt 0:00:26]} Ne6 {[%emt 0:00:03]} 15. Nd5 {[%emt 0:00:33]} Ned4 {[%emt 0:01:56]} 16. Bb2 {[%emt 0:01:06]} Nxf3+ {[%emt 0:01:32]} 17. Bxf3 {[%emt 0:00:03]} Bxb2 {[%emt 0:00:02]} 18. Rxb2 {[%emt 0:01:10]} Ne5 {[%emt 0:00:07]} 19. Qe2 {[%emt 0:00:22]} e6 {[%emt 0:02:12]} 20. Nc3 {[%emt 0:01:07]} Qc7 {[%emt 0:00:02]} 21. c5 {[%emt 0:01:37]} dxc5 {[%emt 0:00:13]} 22. bxc5 {[%emt 0:00:06]} Bd7 {[%emt 0:01:16]} 23. Rc1 {[%emt 0:01:58]} Qxc5 {[%emt 0:01:08]} 24. Rxb7 {[%emt 0:01:04]} Rac8 {[%emt 0:02:48]} 25. Qxa6 {[%emt 0:00:53]} Rc6 {[%emt 0:00:15]} 26. Qf1 {[%emt 0:00:52]} Rfc8 {[%emt 0:00:41]} 27. Rbb1 {[%emt 0:01:04]} Nxf3+ {[%emt 0:00:56]} 0-1

[Event "RUS-ch Women Rapid 2019"]
[Site "Sochi"]
[Date "2019.10.15"]
[Round "1.3"]
[White "Voit, Daria"]
[Black "Koroleva, Evgeniya"]
[Result "1-0"]
[ECO "D26"]
[WhiteElo "2361"]
[BlackElo "1939"]
[Annotator "NA"]
[PlyCount "99"]
[EventDate "2019.10.15"]
[EventType "swiss"]
[EventCountry "RUS"]
[SourceTitle "playchess.com"]
[Source "ChessBase"]
[SourceQuality "1"]
[TimeControl "900+10"]

1. d4 d5 2. c4 dxc4 3. Nf3 Nf6 4. e3 e6 5. Bxc4 a6 6. O-O Nbd7 7. Nc3 c5 8. a4 Qc7 9. Qe2 Bd6 10. h3 O-O 11. e4 cxd4 12. Nxd4 Ne5 13. Ba2 Ng6 14. Rd1 b6 15. Be3 Bb7 16. Rac1 Qb8 17. f3 Bf4 18. Rc2 Bxe3+ 19. Qxe3 Rd8 20. Nde2 Rxd1+ 21. Nxd1 Qd6 22. Rd2 Qb4 23. Qd4 Qxd4+ 24. Rxd4 Rc8 25. Rd6 Rc6 26. Rd8+ Nf8 27. Ne3 N6d7 28. Nc4 h6 29. Nd4 Rc7 30. b4 Kh7 31. Nd6 Kg8 32. Bb3 g6 33. Kf2 Ne5 34. Bxe6 fxe6 35. Nxe6 Rc2+ 36. Kg3 Ned7 37. Nxb7 Kf7 38. Nxf8 Nxf8 39. Rd6 b5 40. Rxa6 bxa4 41. Rxa4 g5 42. Nd6+ Kg6 43. Nf5 h5 44. Ra6+ Kf7 45. h4 gxh4+ 46. Nxh4 Ne6 47. Nf5 Rb2 48. Rb6 Nf8 49. e5 Nd7 50. e6+ 1-0

[Event "RUS-ch Women Rapid 2019"]
[Site "Sochi"]
[Date "2019.10.15"]
[Round "1.4"]
[White "Kovaleva, Ekaterina"]
[Black "Ambartsumova, Karina"]
[Result "0-1"]
[ECO "B43"]
[WhiteElo "1919"]
[BlackElo "2336"]
[Annotator "NA"]
[PlyCount "85"]
[EventDate "2019.10.15"]
[EventType "swiss"]
[EventCountry "RUS"]
[SourceTitle "playchess.com"]
[Source "ChessBase"]
[SourceQuality "1"]
[TimeControl "900+10"]

1. e4 {[%emt 0:00:00]} c5 {[%emt 0:00:00]} 2. Nf3 {[%emt 0:00:00]} e6 {[%emt 0:00:03]} 3. d4 {[%emt 0:00:00]} cxd4 {[%emt 0:00:02]} 4. Nxd4 {[%emt 0:00:01]} a6 {[%emt 0:00:02]} 5. Nc3 {[%emt 0:00:03]} b5 {[%emt 0:00:10]} 6. Bd3 {[%emt 0:01:03]} Qb6 {[%emt 0:00:04]} 7. Nb3 {[%emt 0:00:39]} Qc7 {[%emt 0:00:17]} 8. O-O {[%emt 0:00:21]} Bb7 {[%emt 0:00:14]} 9. f4 {[%emt 0:01:02]} Nf6 {[%emt 0:01:22]} 10. a3 {[%emt 0:02:06]} Be7 {[%emt 0:02:24]} 11. Be3 {[%emt 0:04:18]} d6 {[%emt 0:00:26]} 12. f5 {[%emt 0:00:32]} e5 {[%emt 0:01:34]} 13. Qf3 {[%emt 0:01:10]} h5 {[%emt 0:02:08]} 14. h3 {[%emt 0:01:12]} h4 {[%emt 0:02:01]} 15. Rad1 {[%emt 0:00:18]} Nbd7 {[%emt 0:00:13]} 16. Rfe1 {[%emt 0:01:35]} Rd8 {[%emt 0:02:18]} 17. Bf2 {[%emt 0:00:16]} Kf8 {[%emt 0:00:46]} 18. Bf1 {[%emt 0:01:12]} Bc6 {[%emt 0:00:22]} 19. Qe3 {[%emt 0:00:26]} Rb8 {[%emt 0:00:30]} 20. Qf3 {[%emt 0:01:02]} Nb6 {[%emt 0:00:52]} 21. Nd2 {[%emt 0:00:56]} d5 {[%emt 0:01:45]} 22. Kh1 {[%emt 0:00:16]} d4 {[%emt 0:00:10]} 23. Ne2 {[%emt 0:00:10]} Qb7 {[%emt 0:00:10]} 24. Nc1 {[%emt 0:00:10]} Na4 {[%emt 0:00:03]} 25. Nd3 {[%emt 0:00:03]} Qc7 {[%emt 0:00:35]} 26. Rb1 {[%emt 0:00:15]} a5 {[%emt 0:00:10]} 27. Nc1 {[%emt 0:00:12]} Nc5 {[%emt 0:00:16]} 28. Bd3 {[%emt 0:00:10]} Nh5 {[%emt 0:00:21]} 29. Ne2 {[%emt 0:00:04]} Bg5 {[%emt 0:00:13]} 30. Red1 {[%emt 0:00:12]} Nf6 {[%emt 0:00:04]} 31. b4 {[%emt 0:00:08]} Bxd2 {[%emt 0:00:17]} 32. bxc5 {[%emt 0:00:11]} Bg5 {[%emt 0:00:01]} 33. c3 {[%emt 0:00:09]} dxc3 {[%emt 0:00:13]} 34. Nxc3 {[%emt 0:00:02]} b4 {[%emt 0:00:01]} 35. axb4 {[%emt 0:00:05]} axb4 {[%emt 0:00:01]} 36. Nd5 {[%emt 0:00:12]} Qa5 {[%emt 0:00:31]} 37. Ra1 {[%emt 0:00:08]} Qd8 {[%emt 0:00:00]} 38. Bc4 {[%emt 0:00:08]} Qc8 {[%emt 0:00:12]} 39. Ra7 {[%emt 0:00:21]} Bb7 {[%emt 0:00:24]} 40. Bb3 {[%emt 0:00:19]} Nd7 {[%emt 0:00:08]} 41. Nxb4 {[%emt 0:00:07]} Nxc5 {[%emt 0:00:14]} 42. Bxc5+ {[%emt 0:00:15]} Qxc5 {[%emt 0:00:02]} 43. Ra4 {[%emt 0:00:21]} 0-1

[Event "RUS-ch Women Rapid 2019"]
[Site "Sochi"]
[Date "2019.10.15"]
[Round "1.5"]
[White "Guseva, Marina"]
[Black "Mironenko, Galina"]
[Result "1-0"]
[ECO "E25"]
[WhiteElo "2335"]
[BlackElo "1916"]
[Annotator "NA"]
[PlyCount "73"]
[EventDate "2019.10.15"]
[EventType "swiss"]
[EventCountry "RUS"]
[SourceTitle "playchess.com"]
[Source "ChessBase"]
[SourceQuality "1"]
[TimeControl "900+10"]

1. d4 Nf6 2. c4 e6 3. Nc3 Bb4 4. f3 d5 5. a3 Bxc3+ 6. bxc3 c5 7. cxd5 Nxd5 8. dxc5 Qa5 9. e4 Nf6 10. Be3 O-O 11. Qb3 Nfd7 12. a4 b6 13. Qb4 Nc6 14. Qxa5 Nxa5 15. cxb6 axb6 16. Bb5 Nb3 17. Rb1 Nbc5 18. Ne2 Ba6 19. O-O Rfc8 20. Rfd1 Ne5 21. Bxc5 bxc5 22. Nf4 g6 23. Nd3 Nc4 24. Bxc4 Bxc4 25. Ne5 Ba6 26. Rd7 Rf8 27. Rc7 Rac8 28. Rxc8 Rxc8 29. Rb6 Be2 30. Kf2 Bd1 31. a5 f6 32. Nc6 Kf8 33. a6 Ba4 34. Nb8 Rc7 35. Rb7 Rxb7 36. axb7 Ke8 37. Na6 1-0

[Event "RUS-ch Women Rapid 2019"]
[Site "Sochi"]
[Date "2019.10.15"]
[Round "1.6"]
[White "Serditykh, Olesya"]
[Black "Maltsevskaya, Aleksandra"]
[Result "0-1"]
[ECO "A45"]
[WhiteElo "1915"]
[BlackElo "2304"]
[Annotator "NA"]
[PlyCount "114"]
[EventDate "2019.10.15"]
[EventType "swiss"]
[EventCountry "RUS"]
[SourceTitle "playchess.com"]
[Source "ChessBase"]
[SourceQuality "1"]
[TimeControl "900+10"]

1. d4 {[%emt 0:00:00]} Nf6 {[%emt 0:00:00]} 2. Bg5 {[%emt 0:00:00]} Ne4 {[%emt 0:00:19]} 3. Bf4 {[%emt 0:00:01]} c5 {[%emt 0:00:08]} 4. f3 {[%emt 0:00:49]} Qa5+ {[%emt 0:00:04]} 5. c3 {[%emt 0:00:04]} Nf6 {[%emt 0:00:03]} 6. d5 {[%emt 0:00:39]} e6 {[%emt 0:00:04]} 7. e4 {[%emt 0:00:55]} exd5 {[%emt 0:00:02]} 8. exd5 {[%emt 0:00:01]} d6 {[%emt 0:00:06]} 9. Qe2+ {[%emt 0:02:57]} Be7 {[%emt 0:00:04]} 10. Bxd6 {[%emt 0:05:43]} Nxd5 {[%emt 0:00:13]} 11. Qb5+ {[%emt 0:00:34]} Qxb5 {[%emt 0:00:38]} 12. Bxb5+ {[%emt 0:00:01]} Bd7 {[%emt 0:00:14]} 13. Bxd7+ {[%emt 0:00:08]} Nxd7 {[%emt 0:00:13]} 14. Bxe7 {[%emt 0:00:07]} Nxe7 {[%emt 0:02:24]} 15. Na3 {[%emt 0:01:26]} O-O-O {[%emt 0:00:50]} 16. O-O-O {[%emt 0:00:18]} Ne5 {[%emt 0:04:04]} 17. Rxd8+ {[%emt 0:03:34]} Rxd8 {[%emt 0:00:04]} 18. Nh3 {[%emt 0:00:02]} Nf5 {[%emt 0:00:32]} 19. Nf2 {[%emt 0:00:10]} Nh4 {[%emt 0:02:34]} 20. Rg1 {[%emt 0:00:11]} Neg6 {[%emt 0:00:04]} 21. Nh3 {[%emt 0:00:25]} Re8 {[%emt 0:00:13]} 22. Nb5 {[%emt 0:00:15]} Re2 {[%emt 0:02:42]} 23. Nd6+ {[%emt 0:00:02]} Kb8 {[%emt 0:00:14]} 24. Ne4 {[%emt 0:00:18]} Nxg2 {[%emt 0:02:19]} 25. Ng3 {[%emt 0:00:12]} N2f4 {[%emt 0:00:02]} 26. Nxe2 {[%emt 0:00:11]} Nxe2+ {[%emt 0:00:01]} 27. Kd2 {[%emt 0:00:00]} Nxg1 {[%emt 0:00:02]} 28. Nxg1 {[%emt 0:00:01]} Kc7 {[%emt 0:00:03]} 29. Nh3 {[%emt 0:00:05]} Ne5 {[%emt 0:00:06]} 30. Ke2 {[%emt 0:00:11]} f6 {[%emt 0:00:01]} 31. Nf4 {[%emt 0:00:04]} Kd6 {[%emt 0:01:26]} 32. Nh5 {[%emt 0:00:10]} Nc4 {[%emt 0:00:10]} 33. b3 {[%emt 0:00:07]} Nb6 {[%emt 0:00:02]} 34. Nxg7 {[%emt 0:00:32]} c4 {[%emt 0:00:01]} 35. Nh5 {[%emt 0:00:20]} Ke5 {[%emt 0:00:05]} 36. f4+ {[%emt 0:00:10]} Ke6 {[%emt 0:00:12]} 37. Ke3 {[%emt 0:00:07]} Nd5+ {[%emt 0:00:37]} 38. Kd4 {[%emt 0:00:03]} cxb3 {[%emt 0:00:02]} 39. axb3 {[%emt 0:00:01]} Ne7 {[%emt 0:00:01]} 40. Ke4 {[%emt 0:00:27]} Nc8 {[%emt 0:00:29]} 41. f5+ {[%emt 0:00:12]} Ke7 {[%emt 0:00:03]} 42. Ng3 {[%emt 0:00:13]} Nd6+ {[%emt 0:00:03]} 43. Kd5 {[%emt 0:00:02]} Nb5 {[%emt 0:00:10]} 44. Kc4 {[%emt 0:00:16]} a6 {[%emt 0:00:14]} 45. Kb4 {[%emt 0:00:03]} Kd6 {[%emt 0:00:09]} 46. c4 {[%emt 0:00:03]} Nd4 {[%emt 0:00:02]} 47. Kc3 {[%emt 0:00:07]} Nc6 {[%emt 0:00:01]} 48. b4 {[%emt 0:00:20]} Ke5 {[%emt 0:00:02]} 49. b5 {[%emt 0:00:03]} axb5 {[%emt 0:00:05]} 50. cxb5 {[%emt 0:00:00]} Nd4 {[%emt 0:00:23]} 51. Kc4 {[%emt 0:00:02]} b6 {[%emt 0:00:00]} 52. Nf1 {[%emt 0:00:41]} Nxf5 {[%emt 0:00:04]} 53. Nd2 {[%emt 0:00:05]} Nd6+ {[%emt 0:00:02]} 54. Kb4 {[%emt 0:00:00]} f5 {[%emt 0:00:04]} 55. Nf3+ {[%emt 0:00:10]} Kf4 {[%emt 0:00:07]} 56. Nd4 {[%emt 0:00:03]} Ke4 {[%emt 0:00:01]} 57. Ne6 {[%emt 0:00:13]} h6 {[%emt 0:00:14]} 0-1

[Event "RUS-ch Women Rapid 2019"]
[Site "Sochi"]
[Date "2019.10.15"]
[Round "1.7"]
[White "Charochkina, Daria"]
[Black "But, Svetlana"]
[Result "1-0"]
[ECO "D35"]
[WhiteElo "2289"]
[BlackElo "1910"]
[Annotator "NA"]
[PlyCount "159"]
[EventDate "2019.10.15"]
[EventType "swiss"]
[EventCountry "RUS"]
[SourceTitle "playchess.com"]
[Source "ChessBase"]
[SourceQuality "1"]
[TimeControl "900+10"]

1. d4 {[%emt 0:00:00]} d5 {[%emt 0:00:00]} 2. c4 {[%emt 0:00:00]} e6 {[%emt 0:00:00]} 3. Nc3 {[%emt 0:00:00]} Nf6 {[%emt 0:00:03]} 4. cxd5 {[%emt 0:00:00]} exd5 {[%emt 0:00:04]} 5. Bg5 {[%emt 0:00:02]} Be7 {[%emt 0:00:04]} 6. e3 {[%emt 0:00:06]} c6 {[%emt 0:00:06]} 7. Qc2 {[%emt 0:00:07]} Nbd7 {[%emt 0:00:11]} 8. h3 {[%emt 0:01:29]} Nf8 {[%emt 0:00:36]} 9. Bd3 {[%emt 0:00:14]} Ng6 {[%emt 0:00:45]} 10. O-O-O {[%emt 0:01:42]} Qa5 {[%emt 0:00:25]} 11. Nge2 {[%emt 0:00:55]} Bd7 {[%emt 0:00:13]} 12. f4 {[%emt 0:00:37]} Nf8 {[%emt 0:00:31]} 13. f5 {[%emt 0:00:08]} O-O-O {[%emt 0:00:53]} 14. Bf4 {[%emt 0:00:08]} Be8 {[%emt 0:00:32]} 15. g4 {[%emt 0:04:47]} h6 {[%emt 0:00:10]} 16. Ng1 {[%emt 0:01:16]} Bd6 {[%emt 0:01:42]} 17. Nf3 {[%emt 0:00:02]} Bxf4 {[%emt 0:00:26]} 18. exf4 {[%emt 0:00:02]} N6d7 {[%emt 0:00:27]} 19. Ne5 {[%emt 0:00:20]} f6 {[%emt 0:00:11]} 20. Ng6 {[%emt 0:00:04]} Nxg6 {[%emt 0:00:31]} 21. fxg6 {[%emt 0:00:04]} Nb6 {[%emt 0:00:31]} 22. Rhe1 {[%emt 0:00:07]} Qb4 {[%emt 0:00:21]} 23. Qe2 {[%emt 0:02:34]} Bd7 {[%emt 0:00:47]} 24. Bf5 {[%emt 0:01:13]} Bxf5 {[%emt 0:01:58]} 25. gxf5 {[%emt 0:00:02]} Rd7 {[%emt 0:00:20]} 26. Rd3 {[%emt 0:00:53]} Nc4 {[%emt 0:00:33]} 27. a3 {[%emt 0:00:47]} Qd6 {[%emt 0:00:22]} 28. Qe6 {[%emt 0:00:01]} Qxf4+ {[%emt 0:00:17]} 29. Kb1 {[%emt 0:00:01]} Rhd8 {[%emt 0:01:00]} 30. Na4 {[%emt 0:00:12]} Qd6 {[%emt 0:00:33]} 31. Qe2 {[%emt 0:00:41]} Kb8 {[%emt 0:00:26]} 32. Nc5 {[%emt 0:00:02]} Rc7 {[%emt 0:00:16]} 33. Rb3 {[%emt 0:00:10]} Nb6 {[%emt 0:00:17]} 34. a4 {[%emt 0:00:02]} Ka8 {[%emt 0:00:27]} 35. a5 {[%emt 0:00:24]} Nc4 {[%emt 0:00:14]} 36. a6 {[%emt 0:00:01]} b6 {[%emt 0:00:11]} 37. Nb7 {[%emt 0:00:05]} Rxb7 {[%emt 0:00:03]} 38. axb7+ {[%emt 0:00:01]} Kxb7 {[%emt 0:00:01]} 39. Rf3 {[%emt 0:00:34]} Rd7 {[%emt 0:00:16]} 40. Rf2 {[%emt 0:00:23]} Qb4 {[%emt 0:00:10]} 41. Kc1 {[%emt 0:00:15]} Rc7 {[%emt 0:00:02]} 42. Rd1 {[%emt 0:00:19]} Re7 {[%emt 0:00:05]} 43. Qd3 {[%emt 0:00:23]} Re3 {[%emt 0:00:07]} 44. Qc2 {[%emt 0:00:01]} Rxh3 {[%emt 0:00:29]} 45. Re2 {[%emt 0:00:05]} Re3 {[%emt 0:00:56]} 46. Rd3 {[%emt 0:00:01]} Re7 {[%emt 0:00:14]} 47. b3 {[%emt 0:00:25]} Qa3+ {[%emt 0:00:12]} 48. Kb1 {[%emt 0:00:01]} Na5 {[%emt 0:00:25]} 49. Rde3 {[%emt 0:00:09]} Rc7 {[%emt 0:00:12]} 50. Qb2 {[%emt 0:00:21]} Qd6 {[%emt 0:00:06]} 51. Rf3 {[%emt 0:00:14]} Qb4 {[%emt 0:00:15]} 52. Qc3 {[%emt 0:00:06]} Qb5 {[%emt 0:00:13]} 53. Rfe3 {[%emt 0:00:09]} Nc4 {[%emt 0:00:05]} 54. Re7 {[%emt 0:00:02]} Nd6 {[%emt 0:00:22]} 55. Rxc7+ {[%emt 0:00:08]} Kxc7 {[%emt 0:00:00]} 56. Re7+ {[%emt 0:00:16]} Kd8 {[%emt 0:00:02]} 57. Rxg7 {[%emt 0:00:30]} Qf1+ {[%emt 0:00:14]} 58. Ka2 {[%emt 0:00:11]} Qf2+ {[%emt 0:00:11]} 59. Qb2 {[%emt 0:00:06]} Qxf5 {[%emt 0:00:10]} 60. Rg8+ {[%emt 0:00:15]} Kc7 {[%emt 0:00:35]} 61. g7 {[%emt 0:00:02]} Qg6 {[%emt 0:00:03]} 62. Ra8 {[%emt 0:00:28]} Qxg7 {[%emt 0:00:03]} 63. Rxa7+ {[%emt 0:00:01]} Nb7 {[%emt 0:00:01]} 64. Qh2+ {[%emt 0:00:01]} Kc8 {[%emt 0:00:11]} 65. Ra8+ {[%emt 0:00:01]} Kd7 {[%emt 0:00:06]} 66. Qb8 {[%emt 0:00:01]} Ke6 {[%emt 0:00:09]} 67. Qe8+ {[%emt 0:00:36]} Kf5 {[%emt 0:00:47]} 68. Qxc6 {[%emt 0:00:08]} Qg2+ {[%emt 0:00:05]} 69. Ka3 {[%emt 0:00:01]} Qg7 {[%emt 0:01:11]} 70. Qxd5+ {[%emt 0:00:08]} Kf4 {[%emt 0:00:04]} 71. Rg8 {[%emt 0:00:28]} Qe7+ {[%emt 0:00:02]} 72. Ka4 {[%emt 0:00:02]} Nd6 {[%emt 0:00:08]} 73. Rg1 {[%emt 0:00:43]} b5+ {[%emt 0:00:37]} 74. Ka5 {[%emt 0:00:01]} Qc7+ {[%emt 0:00:44]} 75. Kb4 {[%emt 0:00:03]} Ke3 {[%emt 0:00:18]} 76. Qe6+ {[%emt 0:00:09]} Kf2 {[%emt 0:00:28]} 77. Qe1+ {[%emt 0:00:06]} Kf3 {[%emt 0:00:01]} 78. Rf1+ {[%emt 0:00:12]} Kg4 {[%emt 0:00:04]} 79. Qe2+ {[%emt 0:00:02]} Kg5 {[%emt 0:00:18]} 80. Qg2+ {[%emt 0:00:02]} 1-0

[Event "RUS-ch Women Rapid 2019"]
[Site "Sochi"]
[Date "2019.10.15"]
[Round "1.8"]
[White "Chan, Naruna"]
[Black "Kovanova, Baira"]
[Result "0-1"]
[ECO "C95"]
[WhiteElo "1890"]
[BlackElo "2288"]
[Annotator "NA"]
[PlyCount "74"]
[EventDate "2019.10.15"]
[EventType "swiss"]
[EventCountry "RUS"]
[SourceTitle "playchess.com"]
[Source "ChessBase"]
[SourceQuality "1"]
[TimeControl "900+10"]

1. e4 e5 2. Nf3 Nc6 3. Bb5 a6 4. Ba4 Nf6 5. O-O Be7 6. Re1 b5 7. Bb3 d6 8. c3 O-O 9. h3 Nb8 10. d4 Nbd7 11. Nbd2 Bb7 12. Bc2 Re8 13. Nf1 Bf8 14. Ng3 g6 15. Bg5 h6 16. Bd2 Bg7 17. Qc1 Kh7 18. dxe5 dxe5 19. Be3 Qe7 20. a4 Nc5 21. Bxc5 Qxc5 22. Qd2 Red8 23. Qe2 Bc6 24. Red1 Nd7 25. Bb3 Qe7 26. Bd5 Bxd5 27. Rxd5 c6 28. Rdd1 Nc5 29. axb5 axb5 30. h4 Rxa1 31. Rxa1 Ne6 32. Qe3 Nf4 33. Qb6 Qd6 34. Qb7 Qf6 35. Kh2 Rd3 36. Ne1 Rd2 37. Kg1 Nxg2 0-1

[Event "RUS-ch Women Rapid 2019"]
[Site "Sochi"]
[Date "2019.10.15"]
[Round "1.9"]
[White "Bivol, Alina"]
[Black "Sukhareva, Valentina"]
[Result "1-0"]
[ECO "A15"]
[WhiteElo "2283"]
[BlackElo "1881"]
[Annotator "NA"]
[PlyCount "89"]
[EventDate "2019.10.15"]
[EventType "swiss"]
[EventCountry "RUS"]
[SourceTitle "playchess.com"]
[Source "ChessBase"]
[SourceQuality "1"]
[TimeControl "900+10"]

1. c4 {[%emt 0:00:00]} Nf6 {[%emt 0:00:00]} 2. g3 {[%emt 0:00:00]} g6 {[%emt 0:00:03]} 3. Bg2 {[%emt 0:00:00]} Bg7 {[%emt 0:00:04]} 4. Nf3 {[%emt 0:00:05]} d6 {[%emt 0:00:19]} 5. d4 {[%emt 0:00:01]} O-O {[%emt 0:00:18]} 6. O-O {[%emt 0:00:05]} Nbd7 {[%emt 0:01:24]} 7. Nc3 {[%emt 0:00:02]} c5 {[%emt 0:01:32]} 8. b3 {[%emt 0:00:46]} cxd4 {[%emt 0:00:43]} 9. Nxd4 {[%emt 0:00:01]} Nc5 {[%emt 0:00:40]} 10. Bb2 {[%emt 0:00:02]} Rb8 {[%emt 0:00:41]} 11. Rc1 {[%emt 0:00:41]} Bg4 {[%emt 0:00:36]} 12. h3 {[%emt 0:00:14]} Bd7 {[%emt 0:00:06]} 13. Qd2 {[%emt 0:00:03]} Qa5 {[%emt 0:01:03]} 14. Rfd1 {[%emt 0:00:07]} Rfe8 {[%emt 0:00:20]} 15. Kh2 {[%emt 0:02:32]} h5 {[%emt 0:00:35]} 16. Ba1 {[%emt 0:05:47]} Kh7 {[%emt 0:02:42]} 17. Nc2 {[%emt 0:00:22]} Qb6 {[%emt 0:02:33]} 18. Ne3 {[%emt 0:00:10]} Bc6 {[%emt 0:00:38]} 19. Ncd5 {[%emt 0:00:11]} Bxd5 {[%emt 0:00:17]} 20. Nxd5 {[%emt 0:00:46]} Bh6 {[%emt 0:01:29]} 21. Nxf6+ {[%emt 0:00:54]} exf6 {[%emt 0:00:03]} 22. e3 {[%emt 0:00:01]} Re6 {[%emt 0:00:49]} 23. Bd5 {[%emt 0:00:20]} Ne4 {[%emt 0:00:03]} 24. Qc2 {[%emt 0:00:50]} Nxf2 {[%emt 0:00:09]} 25. Bd4 {[%emt 0:00:31]} Nxd1 {[%emt 0:01:08]} 26. Bxb6 {[%emt 0:00:06]} Nxe3 {[%emt 0:00:11]} 27. Bxe3 {[%emt 0:00:18]} Rxe3 {[%emt 0:00:03]} 28. Bxf7 {[%emt 0:00:20]} f5 {[%emt 0:00:09]} 29. Rf1 {[%emt 0:00:07]} Rf8 {[%emt 0:00:05]} 30. Bd5 {[%emt 0:00:18]} Rfe8 {[%emt 0:00:09]} 31. Rf2 {[%emt 0:00:14]} b6 {[%emt 0:00:05]} 32. b4 {[%emt 0:00:21]} Bg7 {[%emt 0:00:04]} 33. Qa4 {[%emt 0:00:01]} R8e7 {[%emt 0:00:11]} 34. h4 {[%emt 0:02:20]} Be5 {[%emt 0:00:53]} 35. Bf3 {[%emt 0:00:26]} Bd4 {[%emt 0:00:28]} 36. Qc6 {[%emt 0:00:19]} Re1 {[%emt 0:00:13]} 37. Rd2 {[%emt 0:00:24]} Be5 {[%emt 0:00:07]} 38. c5 {[%emt 0:00:11]} Re3 {[%emt 0:00:04]} 39. Rf2 {[%emt 0:00:01]} f4 {[%emt 0:00:08]} 40. gxf4 {[%emt 0:00:01]} Bxf4+ {[%emt 0:00:01]} 41. Kg2 {[%emt 0:00:01]} bxc5 {[%emt 0:00:12]} 42. bxc5 {[%emt 0:00:13]} R3e6 {[%emt 0:00:14]} 43. Bd5 {[%emt 0:00:14]} Rf6 {[%emt 0:00:26]} 44. Qc8 {[%emt 0:00:20]} dxc5 {[%emt 0:00:10]} 45. Qg8+ {[%emt 0:00:07]} 1-0